bitfinex/quotes_SOLUSD_20240727
["timestamp","ask_amount","ask_price","bid_price","bid_amount"]
[1722085919010,5.3507,186.89,186.85,13.379]
[1722085919193,5.3506,186.9,186.85,13.379]
[1722085919393,45.0,186.93,186.85,13.379]
[1722085919703,5.3498,186.92,186.87,5.3512]
[1722085920110,5.3498,186.92,186.85,13.379]
[1722085920111,5.3501,186.91,186.86,5.3515]
[1722085920308,5.3495,186.94,186.88,5.3509]
[1722085920502,5.3489,186.96,186.91,5.35]
[1722085920701,8.38856478,187.0,186.9,18.7264]
[1722085920702,5.349,186.95,186.9,18.7264]
[1722085920900,5.59038211,186.99,186.91,5.3501]
[1722085921107,5.3485,186.97,186.92,5.3497]
[1722085921895,5.3495,186.94,186.88,5.3508]
[1722085922109,20.0,186.98,186.88,5.3508]
[1722085922412,13.3699,186.99,186.87,19.951]
[1722085922413,20.0,186.96,186.87,19.951]
[1722085922591,5.3502,186.91,186.87,19.951]
[1722085923387,5.3499,186.92,186.87,19.951]
[1722085923810,33.3718,186.96,186.87,6.5729]
[1722085924002,9.65247281,186.95,186.87,7.64299831]
[1722085924313,13.3718,186.96,186.87,6.5729]
[1722085924515,29.65212949,186.95,186.87,6.5729]
[1722085924715,5.3501,186.92,186.87,6.5729]
[1722085925100,5.3507,186.89,186.87,6.5729]
[1722085925297,5.3504,186.91,186.87,6.5729]
[1722085925616,5.3495,186.94,186.88,5.351]
[1722085925792,20.0,186.95,186.87,6.5729]
[1722085925793,5.3496,186.93,186.87,6.5729]
[1722085925992,20.0,186.95,186.87,6.5729]
[1722085926226,20.0,186.97,186.88,1.07009111]
[1722085926397,20.0,186.97,186.88,6.42099111]
[1722085926398,5.3495,186.94,186.88,6.42099111]
[1722085926596,20.0,186.95,186.87,6.5729]
[1722085927028,5.3498,186.93,186.87,6.5729]
[1722085927316,20.0,186.97,186.88,5.3507]
[1722085927536,5.3495,186.94,186.88,5.3507]
[1722085928096,5.3496,186.93,186.88,5.3507]
[1722085928321,5.3496,186.93,186.87,11.9241]
[1722085928622,5.3505,186.9,186.87,6.5729]
[1722085929620,5.3493,186.95,186.88,5.3509]
[1722085929924,5.3496,186.93,186.88,5.3509]
[1722085930091,5.3496,186.93,186.87,11.9241]
[1722085930597,5.3495,186.93,186.88,5.3507]
[1722085930796,1.06866863,186.96,186.87,6.5729]
[1722085931102,25.58978767,187.01,186.88,17.1699908]
[1722085931306,5.3481,186.98,186.93,13.3739]
[1722085931508,21.06866863,186.98,186.87,6.5729]
[1722085931740,5.349,186.95,186.88,13.3768]
[1722085931943,5.3487,186.96,186.9,5.3503]
[1722085932110,5.3487,186.96,186.91,5.3501]
[1722085932310,5.3491,186.95,186.9,5.3504]
[1722085932608,5.349,186.95,186.89,5.3505]
[1722085932814,5.58546518,187.0,186.91,13.3753]
[1722085933008,27.31989615,187.04,186.9,1.06972106]
[1722085933239,9.65078763,186.99,186.93,13.3733]
[1722085933412,5.3473,187.01,186.96,20.0]
[1722085933608,9.64976912,187.0,186.96,20.0]
[1722085933833,5.3481,186.99,186.96,20.0]
[1722085934041,5.3482,186.98,186.96,20.0]
[1722085934845,5.3484,186.97,186.96,20.0]
[1722085935238,5.3481,186.98,186.96,20.0]
[1722085935529,5.3479,186.99,186.96,20.0]
[1722085936033,5.3476,187.0,186.96,20.0]
[1722085936242,5.3473,187.01,186.96,20.0]
[1722085936430,5.3476,187.0,186.96,20.0]
[1722085936613,5.3479,186.99,186.96,20.0]
[1722085937116,5.3481,186.98,186.96,20.0]
[1722085937510,5.3484,186.97,186.96,20.0]
[1722085937964,13.368,187.02,186.96,20.0]
[1722085938238,5.3479,186.99,186.96,20.0]
[1722085938938,5.3475,187.01,186.96,25.3486]
[1722085939129,5.3475,187.01,186.96,31.7422]
[1722085939548,5.3476,187.0,186.96,26.3936]
[1722085940232,5.3479,186.99,186.96,26.3936]
[1722085940434,13.3676,187.02,186.96,26.3936]
[1722085940635,5.3482,186.98,186.96,26.3936]
[1722085940825,5.3484,186.97,186.96,20.0]
[1722085941654,25.3484,186.97,186.96,20.0]
[1722085941950,80.00023561,186.97,186.96,20.0]
[1722085942154,70.3484,186.97,186.96,20.0]
[1722085942562,35.00026105,186.97,186.96,20.0]
[1722085943449,9.65186105,186.97,186.96,20.0]
[1722085943640,21.06866863,187.02,186.96,20.0]
[1722085943831,5.3484,186.97,186.96,20.0]
[1722085946638,5.3482,186.98,186.96,20.0]
[1722085947031,5.3473,187.01,186.96,25.3487]
[1722085947233,40.68619615,187.04,186.96,26.4155]
[1722085947459,9.64886424,187.03,186.96,26.4155]
[1722085947763,9.64886424,187.02,186.96,26.4155]
[1722085948055,5.3476,187.0,186.96,26.4155]
[1722085948247,26.27033368,187.04,186.96,26.4155]
[1722085948248,46.27033368,187.04,186.96,26.4155]
[1722085948459,1.06866863,187.03,186.96,26.4155]
[1722085948645,10.71741726,187.03,186.96,26.4155]
[1722085948845,5.3484,186.97,186.96,20.0]
[1722085949654,5.3476,187.0,186.96,20.0]
[1722085949834,5.3482,186.98,186.96,20.0]
[1722085950040,5.3484,186.97,186.96,20.0]
[1722085950933,40.68689615,187.03,186.96,20.0]
[1722085951149,14.99607291,187.02,186.96,20.0]
[1722085951350,5.3472,187.02,186.96,26.4178649]
[1722085951852,5.3473,187.01,186.96,25.3484]
[1722085952433,5.3478,187.0,186.96,20.0]
[1722085953041,5.3472,187.02,186.96,20.0]
[1722085953356,5.58413753,187.04,186.96,20.0]
[1722085953557,5.3472,187.02,186.96,25.3486]
[1722085953738,5.3464,187.04,186.99,5.3476]
[1722085953938,5.3467,187.03,187.0,1.06934456]
[1722085954154,20.68319615,187.08,186.99,6.621]
[1722085954155,5.347,187.02,186.99,6.621]
[1722085954547,5.347,187.02,187.0,1.06938196]
[1722085954730,5.347,187.02,186.99,6.621]
[1722085955757,5.3475,187.0,186.99,6.621]
[1722085955964,13.3655,187.05,186.99,6.621]
[1722085956133,12.90287726,187.08,186.99,6.621]
[1722085956134,46.26617726,187.08,186.99,6.621]
[1722085956334,5.347,187.02,186.99,6.621]
[1722085956666,13.3652,187.06,186.99,6.621]
[1722085956842,9.64743537,187.05,186.99,6.621]
[1722085957043,13.3652,187.06,186.99,6.621]
[1722085957244,5.3467,187.03,186.99,6.621]
[1722085957563,5.347,187.02,186.99,6.621]
[1722085957930,39.19386863,187.06,186.99,6.621]
[1722085958135,5.3475,187.0,186.99,6.621]
[1722085958637,5.3473,187.01,186.99,6.621]
[1722085959862,13.3652,187.06,186.99,6.621]
[1722085960056,9.64756318,187.05,186.99,6.621]
[1722085960238,5.3467,187.03,186.99,6.621]
[1722085961643,1.06866863,187.1,186.96,33.3716]
[1722085961644,20.0,187.4,187.21,5.3415]
[1722085961846,24.76,187.3,187.22,46.06754342]
[1722085962060,24.76,187.3,187.21,13.3539]
[1722085962061,24.76,187.27,187.14,6.621]
[1722085962270,24.76,187.27,186.97,20.34]
[1722085962271,20.0,187.17,187.04,6.621]
[1722085962440,20.0,187.15,187.04,6.621]
[1722085962640,20.0,187.12,187.04,6.621]
[1722085963054,20.0,187.12,186.99,16.2868]
[1722085963055,20.0,187.13,187.01,13.3676]
[1722085963263,20.0,187.13,187.05,5.3459]
[1722085963467,20.0,187.13,187.04,13.3655]
[1722085963645,20.0,187.15,187.07,5.3455]
[1722085963840,20.0,187.15,187.07,6.41432907]
[1722085964046,20.0,187.15,187.08,5.3452]
[1722085964245,5.343,187.16,187.09,5.3449]
[1722085964642,5.343,187.16,187.07,13.3633]
[1722085964863,5.3434,187.15,187.07,18.7086]
[1722085965068,5.3436,187.14,187.08,1.06877653]
[1722085965249,5.3436,187.14,187.08,5.3452]
[1722085965568,5.3432,187.16,187.08,6.41397526]
[1722085965868,5.3432,187.16,187.09,5.3449]
[1722085966161,20.0,187.2,187.07,13.3633]
[1722085966162,5.3433,187.15,187.07,13.3633]
[1722085966474,5.3429,187.17,187.09,5.3449]
[1722085966655,5.3422,187.19,187.1,1.06859519]
[1722085966963,5.3422,187.19,187.11,14.4295693]
[1722085967259,5.3417,187.21,187.12,45.0]
[1722085967565,5.3416,187.21,187.15,18.7013]
[1722085967748,5.3416,187.21,187.15,13.3581]
[1722085968070,20.0,187.26,187.15,14.42647706]
[1722085968450,5.3416,187.21,187.15,19.76957706]
[1722085968650,5.3412,187.23,187.16,1.0683233]
[1722085968851,5.3412,187.23,187.16,46.0683233]
[1722085969367,20.0,187.25,187.13,6.1809]
[1722085969553,20.0,187.25,187.13,11.5246]
[1722085969742,5.3422,187.19,187.13,12.59305184]
[1722085969944,5.3422,187.19,187.13,11.5246]
[1722085970144,5.3418,187.2,187.14,5.3435]
[1722085970345,5.3418,187.2,187.13,6.1809]
[1722085970346,20.0,187.25,187.15,5.3431]
[1722085970564,20.0,187.25,187.14,13.3585]
[1722085970861,5.3416,187.21,187.15,5.3433]
[1722085971065,5.3413,187.22,187.16,5.3429]
[1722085971367,5.3414,187.22,187.16,5.3427]
[1722085971564,5.341,187.24,187.17,6.41095051]
[1722085971869,5.341,187.23,187.18,1.06824647]
[1722085972075,5.341,187.23,187.17,5.3427]
[1722085972363,50.34397318,187.28,187.18,5.3424]
[1722085972570,20.0,187.23,187.13,19.5405]
[1722085972946,5.3422,187.19,187.13,24.8841]
[1722085973146,5.3422,187.19,187.14,6.41195434]
[1722085973469,5.3418,187.2,187.14,6.41195434]
[1722085973669,78.1132,187.22,187.13,6.1809]
[1722085973839,78.1132,187.22,187.1,5.3444]
[1722085974365,78.1132,187.22,187.11,5.3443]
[1722085974565,44.76,187.19,187.09,18.7065]
[1722085974765,5.3437,187.14,187.09,18.7065]
[1722085974968,5.3437,187.14,187.09,13.3618]
[1722085975356,5.3433,187.15,187.09,18.7067]
[1722085975756,5.343,187.16,187.1,5.3447]
[1722085976177,5.3427,187.17,187.11,5.3443]
[1722085976348,30.1023,187.19,187.12,1.06867846]
[1722085976561,5.3428,187.17,187.12,1.06867846]
[1722085976878,5.3428,187.17,187.12,6.41267846]
[1722085977082,5.3424,187.18,187.13,5.3438]
[1722085977370,20.0,187.26,187.15,13.3575]
[1722085977371,24.76,187.26,187.15,13.3575]
[1722085977575,5.3414,187.22,187.16,6.41116079]
[1722085977874,5.341,187.23,187.17,5.3426]
[1722085978257,24.76,187.26,187.19,5.3418]
[1722085978576,5.58397318,187.28,187.2,1.06817837]
[1722085978754,0.7904134,187.29,187.21,1.06803883]
[1722085978953,5.3401,187.26,187.21,1.06803883]
[1722085979150,5.3399,187.27,187.21,6.40943883]
[1722085979363,5.3399,187.27,187.22,5.3412]
[1722085979570,5.3399,187.27,187.23,1.06802827]
[1722085979775,5.3399,187.27,187.24,1.06802115]
[1722085979957,5.3396,187.28,187.23,5.341]
[1722085980288,5.3396,187.28,187.23,1.06791811]
[1722085980505,5.3399,187.27,187.21,1.06792101]
[1722085980780,5.3404,187.25,187.2,13.354]
[1722085980948,0.7904134,187.29,187.19,6.1809]
[1722085980949,20.7904134,187.29,187.19,6.1809]
[1722085981154,13.3505,187.26,187.19,6.1809]
[1722085981454,5.3418,187.2,187.15,5.3432]
[1722085981853,5.3415,187.22,187.16,5.343]
[1722085982154,5.3415,187.22,187.15,5.343]
[1722085982362,5.3425,187.18,187.14,13.3583]
[1722085982562,5.3428,187.17,187.13,6.1809]
[1722085982773,5.344,187.13,187.08,6.1809]
[1722085982956,5.3436,187.14,187.08,11.5261]
[1722085983277,33.3556,187.19,187.08,6.1809]
[1722085983473,5.3438,187.14,187.08,6.1809]
[1722085983682,5.3439,187.13,187.08,11.526]
[1722085983884,5.3435,187.15,187.08,11.526]
[1722085984188,5.344,187.13,187.08,11.526]
[1722085984906,13.3575,187.17,187.08,6.1809]
[1722085985105,33.3575,187.17,187.08,6.1809]
[1722085985385,5.3441,187.12,187.08,6.1809]
[1722085985566,33.3575,187.17,187.05,5.3461]
[1722085985772,20.0,187.15,187.05,5.3461]
[1722085986868,20.0,187.15,187.02,22.2898]
[1722085987085,13.3575,187.17,187.04,1.06888803]
[1722085987269,20.0,187.19,187.1,5.3447]
[1722085987463,5.343,187.16,187.1,5.3447]
[1722085988085,5.343,187.16,187.08,13.3632]
[1722085988086,13.3561,187.18,187.08,18.7084]
[1722085988302,5.3436,187.14,187.09,5.345]
[1722085988584,5.3432,187.16,187.1,5.3446]
[1722085988793,5.3432,187.16,187.08,13.3632]
[1722085988996,47.8,187.22,187.11,13.361]
[1722085989291,5.3427,187.17,187.12,5.3441]
[1722085989680,5.3423,187.19,187.13,5.3438]
[1722085990189,5.3427,187.18,187.11,18.7051]
[1722085990387,5.3428,187.17,187.12,5.3441]
[1722085990595,5.58561286,187.22,187.11,13.361]
[1722085990890,13.3532,187.23,187.11,13.361]
[1722085991287,5.3422,187.19,187.14,5.3435]
[1722085991490,33.38599039,187.25,187.15,1.06848753]
[1722085991788,33.3503,187.27,187.15,5.3432]
[1722085992008,5.3419,187.2,187.14,25.1294]
[1722085992293,13.3519,187.24,187.14,19.7859]
[1722085992492,13.3542,187.21,187.14,6.4273]
[1722085992679,5.3427,187.18,187.11,5.3441]
[1722085992874,5.3427,187.18,187.12,5.3439]
[1722085993783,5.3421,187.2,187.14,5.3435]
[1722085993981,5.3422,187.19,187.14,5.3435]
[1722085994179,5.3422,187.19,187.13,13.3594]
[1722085994180,5.3425,187.18,187.13,13.3594]
[1722085994364,20.0,187.22,187.09,6.4273]
[1722085994365,5.3431,187.16,187.11,5.3443]
[1722085994569,20.0,187.24,187.14,5.3435]
[1722085994778,20.0,187.24,187.15,1.06852126]
[1722085994998,20.0,187.24,187.14,5.3435]
[1722085995191,20.0,187.24,187.14,13.3587]
[1722085996090,5.3419,187.2,187.14,18.702]
[1722085996291,41.1512,187.25,187.15,5.3432]
[1722085996292,5.3416,187.21,187.15,5.3432]
[1722085996493,20.0,187.24,187.14,13.3587]
[1722085996698,5.3421,187.2,187.14,18.7022]
[1722085996900,20.0,187.24,187.11,13.361]
[1722085996901,20.0,187.22,187.11,13.361]
[1722085997194,5.3427,187.18,187.13,5.3437]
[1722085997397,5.58493538,187.24,187.13,13.359]
[1722085997596,5.3416,187.21,187.15,5.343]
[1722085997889,41.1512,187.25,187.13,13.359]
[1722085997890,5.3419,187.2,187.14,5.3434]
[1722085998067,41.1512,187.25,187.13,13.359]
[1722085998068,5.3416,187.21,187.15,5.343]
[1722085998272,41.1512,187.25,187.15,5.343]
[1722085998273,5.3419,187.2,187.15,5.343]
[1722085998673,41.1512,187.25,187.16,5.3429]
[1722085999093,5.3413,187.22,187.17,5.3427]
[1722085999295,5.3413,187.22,187.16,5.3429]
[1722085999611,5.3417,187.21,187.15,18.7006]
[1722086000697,20.0,187.24,187.15,13.3576]
[1722086000886,13.3512,187.25,187.15,13.3576]
[1722086001082,20.0,187.24,187.15,13.3576]
[1722086001297,5.3413,187.22,187.15,13.3576]
[1722086002100,5.58492515,187.27,187.17,13.3561]
[1722086002306,24.72,187.28,187.17,13.3561]
[1722086002495,24.72,187.28,187.18,1.06818394]
[1722086003034,5.3413,187.22,187.17,18.6986]
[1722086003191,24.72,187.28,187.18,5.3423]
[1722086003390,24.72,187.28,187.19,5.342]
[1722086003588,5.3403,187.26,187.2,5.3417]
[1722086003796,24.72,187.28,187.2,5.3417]
[1722086004379,5.3404,187.25,187.2,5.3417]
[1722086004676,5.3404,187.25,187.2,5.3418]
[1722086005100,5.3408,187.24,187.19,24.9721]
[1722086005285,5.3411,187.23,187.19,19.63]
[1722086005990,24.72,187.28,187.19,19.63]
[1722086006403,33.3503,187.27,187.19,6.2752]
[1722086006798,5.3415,187.22,187.19,6.2752]
[1722086007001,13.3519,187.24,187.14,11.6186]
[1722086007612,5.3422,187.19,187.14,11.6186]
[1722086007818,13.3519,187.24,187.15,5.3432]
[1722086007994,5.3419,187.2,187.15,5.3432]
[1722086008708,5.3415,187.22,187.17,5.3427]
[1722086008902,5.3413,187.22,187.17,5.3425]
[1722086009205,33.3498,187.27,187.19,5.3421]
[1722086009206,5.3409,187.24,187.19,5.3421]
[1722086009412,5.3405,187.25,187.2,5.3418]
[1722086009910,5.341,187.23,187.17,13.3563]
[1722086010109,5.341,187.23,187.18,5.3424]
[1722086010298,5.341,187.23,187.17,13.3563]
[1722086010299,5.3407,187.24,187.19,5.3421]
[1722086011117,5.341,187.23,187.18,5.3424]
[1722086011614,5.341,187.23,187.15,1.0681976]
[1722086011615,5.342,187.2,187.14,6.2752]
[1722086011793,5.342,187.2,187.15,1.06834791]
[1722086012199,13.3509,187.26,187.15,14.42604791]
[1722086012494,5.3408,187.24,187.19,5.3421]
[1722086012690,24.72,187.28,187.15,1.06834791]
[1722086012915,5.3408,187.24,187.19,13.3548]
[1722086013217,5.341,187.23,187.19,18.6967]
[1722086013587,24.72,187.28,187.19,18.6967]
[1722086014210,24.72,187.28,187.2,5.3418]
[1722086014406,5.3405,187.25,187.2,5.3418]
[1722086014615,24.72,187.28,187.19,13.3548]
[1722086014812,5.3403,187.26,187.21,5.3415]
[1722086015007,5.3409,187.24,187.19,18.6969]
[1722086015213,5.341,187.23,187.19,13.3548]
[1722086015419,38.0695,187.28,187.16,13.3574]
[1722086015617,5.3413,187.22,187.17,5.3426]
[1722086015915,5.3416,187.21,187.16,18.7002]
[1722086016106,5.3419,187.2,187.16,13.3574]
[1722086016503,24.72,187.22,187.14,6.2752]
[1722086017499,5.3427,187.17,187.14,6.2752]
[1722086017822,5.343,187.16,187.11,21.2585]
[1722086018395,5.3436,187.14,187.1,7.69441389]
[1722086018717,5.3433,187.15,187.1,11.9703]
[1722086018904,15.0962,187.22,187.1,6.6258]
[1722086019219,5.3424,187.19,187.11,13.3605]
[1722086019425,5.3424,187.18,187.13,5.3438]
[1722086019619,5.343,187.17,187.11,18.7048]
[1722086019819,20.0,187.21,187.12,6.41267138]
[1722086020522,39.8162,187.22,187.13,5.3437]
[1722086020819,20.0,187.21,187.12,5.3441]
[1722086022210,24.72,187.22,187.14,13.3588]
[1722086022410,24.72,187.22,187.14,18.7023]
[1722086022722,5.3419,187.2,187.14,18.7023]
[1722086022930,5.3419,187.2,187.15,5.3431]
[1722086023325,5.3425,187.18,187.14,13.3588]
[1722086023508,5.3419,187.2,187.15,5.3432]
[1722086024720,20.0,187.24,187.14,13.3588]
[1722086025011,5.3415,187.22,187.16,5.3429]
[1722086025214,5.3416,187.21,187.16,5.3429]
[1722086025928,28.4459,187.27,187.16,5.3429]
[1722086025929,15.0962,187.27,187.19,5.3419]
[1722086026114,20.0,187.26,187.16,13.3575]
[1722086026318,5.3416,187.21,187.16,13.3575]
[1722086026519,5.3416,187.21,187.16,18.7004]
[1722086026818,5.3411,187.23,187.17,5.3425]
[1722086027015,20.0,187.26,187.16,13.3575]
[1722086027223,20.0,187.24,187.16,13.3575]
[1722086027609,5.3416,187.21,187.16,13.3575]
[1722086027930,5.3421,187.19,187.14,5.3435]
[1722086028325,5.3419,187.2,187.14,5.3435]
[1722086028526,5.3416,187.21,187.15,5.343]
[1722086028721,5.3419,187.2,187.15,5.343]
[1722086028905,5.3416,187.21,187.16,5.343]
[1722086029310,5.3416,187.21,187.14,13.3583]
[1722086029311,5.3413,187.22,187.17,5.3426]
[1722086029511,5.341,187.23,187.17,5.3426]
[1722086030010,5.3413,187.22,187.17,5.3426]
[1722086030423,5.3413,187.22,187.16,5.3429]
[1722086030932,5.3419,187.2,187.15,5.3431]
[1722086031230,5.3421,187.19,187.14,18.7018]
[1722086031420,33.3519,187.24,187.15,5.3432]
[1722086031615,5.3421,187.2,187.14,18.7018]
[1722086032631,5.3422,187.19,187.14,18.7018]
[1722086032837,5.3424,187.18,187.14,13.3583]
[1722086033432,5.3422,187.19,187.14,18.7018]
[1722086034036,5.3425,187.18,187.14,13.3583]
[1722086034819,5.3422,187.19,187.14,18.7018]
[1722086035531,5.3419,187.2,187.15,5.3432]
[1722086035728,5.3424,187.19,187.14,18.7018]
[1722086036039,5.3425,187.18,187.14,13.3583]
[1722086036615,20.0,187.2,187.1,19.9869]
[1722086036814,5.343,187.16,187.11,6.41283077]
[1722086037239,5.3433,187.15,187.11,1.06873077]
[1722086037540,5.343,187.16,187.11,6.41313077]
[1722086038244,5.343,187.16,187.12,5.3441]
[1722086038638,5.343,187.16,187.11,6.41313077]
[1722086041721,5.3433,187.15,187.11,6.41313077]
[1722086041920,5.3433,187.15,187.11,1.06873077]
[1722086042120,5.343,187.16,187.11,5.3444]
[1722086042427,5.3433,187.15,187.12,1.06868637]
[1722086042640,5.3433,187.15,187.1,25.3315]
[1722086042840,5.3433,187.15,187.11,1.06871948]
[1722086043047,5.343,187.16,187.11,6.41301948]
[1722086043339,5.3421,187.2,187.15,5.3432]
[1722086043530,33.3539,187.22,187.13,1.06854682]
[1722086044135,5.3423,187.19,187.14,5.3435]
[1722086044343,20.0,187.26,187.11,27.79063567]
[1722086044548,5.3418,187.21,187.16,5.3429]
[1722086044744,5.3418,187.21,187.17,13.3564]
[1722086045524,20.0,187.26,187.16,5.3429]
[1722086045739,5.3415,187.22,187.17,5.3425]
[1722086046153,5.3416,187.21,187.16,5.3429]
[1722086046448,5.3413,187.22,187.16,13.3568]
[1722086046644,58.75357518,187.27,187.18,5.3424]
[1722086046846,5.3412,187.23,187.18,5.3424]
[1722086047048,5.3413,187.22,187.18,5.3424]
[1722086047525,5.3413,187.22,187.17,5.3426]
[1722086047730,5.3413,187.22,187.18,5.3424]
[1722086047941,5.341,187.23,187.18,5.3424]
[1722086048143,5.3413,187.22,187.17,5.3426]
[1722086048648,5.3413,187.22,187.18,5.3424]
[1722086048832,5.341,187.23,187.18,5.3424]
[1722086049034,5.3407,187.24,187.19,5.342]
[1722086049234,5.341,187.23,187.17,5.3425]
[1722086049447,5.341,187.23,187.16,13.3568]
[1722086049448,13.3516,187.25,187.16,13.3568]
[1722086049755,13.3516,187.25,187.17,6.41099732]
[1722086050051,5.3421,187.2,187.16,13.3568]
[1722086050434,5.3421,187.19,187.15,16.4816]
[1722086050735,5.3419,187.2,187.15,21.8248]
[1722086051332,5.3416,187.21,187.16,5.3429]
[1722086052059,5.3416,187.21,187.15,29.8393]
[1722086052060,13.3516,187.25,187.17,1.06833993]
[1722086052348,5.3419,187.2,187.15,35.1823]
[1722086052660,5.3416,187.21,187.16,6.41129031]
[1722086053324,5.3416,187.21,187.16,5.3429]
[1722086053942,5.58717518,187.27,187.19,19.8158]
[1722086054148,0.7904134,187.29,187.22,5.3411]
[1722086054349,0.7904134,187.29,187.23,5.341]
[1722086054537,5.3396,187.28,187.23,5.341]
[1722086054733,0.7904134,187.29,187.23,5.3407]
[1722086055029,12.35,187.28,187.25,5.3404]
[1722086055442,0.7904134,187.29,187.25,5.3404]
[1722086055647,12.35,187.28,187.25,5.3404]
[1722086056049,12.35,187.28,187.24,5.3407]
[1722086056255,0.7904134,187.29,187.22,25.7032]
[1722086056439,13.1404134,187.29,187.23,45.0]
[1722086056636,12.35,187.28,187.23,5.3408]
[1722086057135,6.1298134,187.29,187.24,5.3407]
[1722086057843,0.7904134,187.29,187.22,13.3532]
[1722086058232,5.3399,187.27,187.22,13.3532]
[1722086058938,5.3396,187.28,187.22,18.6943]
[1722086059358,5.3396,187.28,187.23,5.3409]
[1722086060432,6.1297134,187.29,187.23,5.3409]
[1722086060951,0.7904134,187.29,187.24,5.3406]
[1722086061254,0.7904134,187.29,187.25,5.3403]
[1722086061554,0.7904134,187.29,187.25,18.6914]
[1722086062439,0.7904134,187.29,187.25,13.351]
[1722086062856,0.7904134,187.29,187.27,5.3397]
[1722086063242,0.7904134,187.29,187.28,5.3395]
[1722086063732,0.7904134,187.29,187.28,18.6884]
[1722086064251,0.7904134,187.29,187.26,5.3399]
[1722086064872,0.7904134,187.29,187.27,1.06778844]
[1722086065041,0.7904134,187.29,187.27,5.3398]
[1722086065558,0.7904134,187.29,187.25,1.06778906]
[1722086065954,0.7904134,187.29,187.28,5.3395]
[1722086066860,0.7904134,187.29,187.27,13.3495]
[1722086067542,0.7904134,187.29,187.27,18.6893]
[1722086067737,0.7904134,187.29,187.28,6.40728956]
[1722086067940,0.7904134,187.29,187.27,13.3495]
[1722086068254,0.7904134,187.29,187.25,5.3402]
[1722086068460,0.7904134,187.29,187.24,5.3407]
[1722086068754,0.7904134,187.29,187.26,5.3401]
[1722086069734,0.7904134,187.29,187.23,14.41990153]
[1722086069937,0.7904134,187.29,187.24,5.3404]
[1722086070138,0.7904134,187.29,187.25,5.3403]
[1722086070366,0.7904134,187.29,187.24,5.3407]
[1722086070542,0.7904134,187.29,187.25,5.3404]
[1722086071246,0.7904134,187.29,187.26,5.3401]
[1722086071561,0.7904134,187.29,187.27,5.3396]
[1722086072237,0.7904134,187.29,187.26,18.6901]
[1722086072434,0.7904134,187.29,187.26,13.35]
[1722086072860,0.7904134,187.29,187.26,18.6901]
[1722086073161,0.7904134,187.29,187.28,5.3395]
[1722086073358,0.7904134,187.29,187.26,18.6901]
[1722086073567,0.7904134,187.29,187.24,5.3405]
[1722086073861,6.1297134,187.29,187.23,18.6932]
[1722086074060,6.1297134,187.29,187.24,5.3406]
[1722086074374,0.7904134,187.29,187.25,5.3403]
[1722086074746,0.7904134,187.29,187.26,5.3401]
[1722086075049,0.7904134,187.29,187.27,5.3398]
[1722086075256,0.7904134,187.29,187.26,13.3502]
[1722086075459,0.7904134,187.29,187.27,5.3398]
[1722086075657,0.7904134,187.29,187.28,5.3395]
[1722086078367,0.7904134,187.29,187.28,72.3392]
[1722086078772,0.7904134,187.29,187.28,88.4392]
[1722086078949,0.7904134,187.29,187.28,72.3392]
[1722086079267,0.7904134,187.29,187.28,84.6792]
[1722086079770,0.7904134,187.29,187.28,100.7792]
[1722086080063,0.7904134,187.29,187.28,120.7792]
[1722086080265,5.58399257,187.42,187.35,13.3437]